[Event "Titled Tuesday Blitz July 26 Late 2022"]
[White "Tanenbaum, Zachary"]
[Black "Agasarov, Benik"]
[WhiteFideId "2060850"]
[BlackFideId "13314823"]
[WhiteElo "2175"]
[BlackElo "2626"]
[Result "1-0"]
[Round "09"]
[TimeControl "180+1"]
[Date "2022.07.26"]
[WhiteClock "0:00:07"]
[BlackClock "0:00:16"]

1. e4 {[%clk 0:03:00]}  e5 {[%clk 0:02:59]} 2. Nf3 {[%clk 0:03:00]}  Nc6 {[%clk 0:03:00]} 3. Bc4 {[%clk 0:03:01]}  Nf6 {[%clk 0:02:59]} 4. d3 {[%clk 0:03:01]}  Bc5 {[%clk 0:02:56]} 5. c3 {[%clk 0:03:02]}  O-O {[%clk 0:02:56]} 6. Nbd2 {[%clk 0:03:02]}  d6 {[%clk 0:02:54]} 7. a4 {[%clk 0:03:02]}  a5 {[%clk 0:02:54]} 8. Nf1 {[%clk 0:03:02]}  Be6 {[%clk 0:02:53]} 9. Bxe6 {[%clk 0:03:02]}  fxe6 {[%clk 0:02:53]} 10. Ng3 {[%clk 0:03:03]}  Ba7 {[%clk 0:02:49]} 11. O-O {[%clk 0:03:03]}  Qe8 {[%clk 0:02:48]} 12. Be3 {[%clk 0:03:02]}  Bxe3 {[%clk 0:02:48]} 13. fxe3 {[%clk 0:03:03]}  Qg6 {[%clk 0:02:47]} 14. Qb3 {[%clk 0:02:41]}  Nd8 {[%clk 0:02:43]} 15. Nd2 {[%clk 0:02:19]}  b6 {[%clk 0:02:29]} 16. Rf3 {[%clk 0:02:17]}  Re8 {[%clk 0:02:12]} 17. Nc4 {[%clk 0:02:10]}  Nb7 {[%clk 0:02:10]} 18. Raf1 {[%clk 0:02:07]}  Nc5 {[%clk 0:02:10]} 19. Qc2 {[%clk 0:02:04]}  Rf8 {[%clk 0:02:10]} 20. h3 {[%clk 0:01:54]}  Nfd7 {[%clk 0:02:08]} 21. Kh2 {[%clk 0:01:49]}  Rxf3 {[%clk 0:02:06]} 22. Rxf3 {[%clk 0:01:50]}  Rf8 {[%clk 0:02:05]} 23. Rxf8+ {[%clk 0:01:48]}  Nxf8 {[%clk 0:02:06]} 24. b4 {[%clk 0:01:46]}  Nb7 {[%clk 0:01:57]} 25. bxa5 {[%clk 0:01:43]}  Nxa5 {[%clk 0:01:57]} 26. Nxa5 {[%clk 0:01:43]}  bxa5 {[%clk 0:01:58]} 27. Qb3 {[%clk 0:01:37]}  Qe8 {[%clk 0:01:57]} 28. Nf1 {[%clk 0:01:33]}  Qc6 {[%clk 0:01:55]} 29. Kg1 {[%clk 0:01:26]}  Kf7 {[%clk 0:01:54]} 30. Nd2 {[%clk 0:01:25]}  Nd7 {[%clk 0:01:50]} 31. d4 {[%clk 0:00:54]}  Nb6 {[%clk 0:01:35]} 32. Qd1 {[%clk 0:00:47]}  Qxc3 {[%clk 0:01:34]} 33. Qh5+ {[%clk 0:00:37]}  Kf8 {[%clk 0:01:34]} 34. Nf3 {[%clk 0:00:11]}  Qxe3+ {[%clk 0:01:33]} 35. Kh1 {[%clk 0:00:11]}  Qc1+ {[%clk 0:01:23]} 36. Kh2 {[%clk 0:00:12]}  Qf4+ {[%clk 0:01:20]} 37. Kh1 {[%clk 0:00:12]}  exd4 {[%clk 0:01:05]} 38. Nxd4 {[%clk 0:00:13]}  Qxe4 {[%clk 0:01:01]} 39. Nf3 {[%clk 0:00:13]}  Qf5 {[%clk 0:00:56]} 40. Qh4 {[%clk 0:00:11]}  h6 {[%clk 0:00:47]} 41. Qd8+ {[%clk 0:00:11]}  Kf7 {[%clk 0:00:42]} 42. Qxc7+ {[%clk 0:00:11]}  Kg8 {[%clk 0:00:41]} 43. Qxb6 {[%clk 0:00:12]}  Qf4 {[%clk 0:00:34]} 44. Qxa5 {[%clk 0:00:11]}  e5 {[%clk 0:00:33]} 45. Qd5+ {[%clk 0:00:11]}  Kh7 {[%clk 0:00:33]} 46. Qxd6 {[%clk 0:00:10]}  Qc1+ {[%clk 0:00:33]} 47. Kh2 {[%clk 0:00:10]}  Qf4+ {[%clk 0:00:34]} 48. Kh1 {[%clk 0:00:08]}  Qc1+ {[%clk 0:00:34]} 49. Ng1 {[%clk 0:00:08]}  e4 {[%clk 0:00:33]} 50. Qe5 {[%clk 0:00:07]}  e3 {[%clk 0:00:30]} 51. Qe4+ {[%clk 0:00:07]}  Kh8 {[%clk 0:00:29]} 52. Kh2 {[%clk 0:00:08]}  Qc7+ {[%clk 0:00:27]} 53. Kh1 {[%clk 0:00:07]}  Qc1 {[%clk 0:00:27]} 54. Kh2 {[%clk 0:00:06]}  Qc7+ {[%clk 0:00:27]} 55. g3 {[%clk 0:00:07]}  Qc3 {[%clk 0:00:25]} 56. Kg2 {[%clk 0:00:06]}  Qd2+ {[%clk 0:00:25]} 57. Kh1 {[%clk 0:00:07]}  Qf2 {[%clk 0:00:22]} 58. a5 {[%clk 0:00:06]}  Qxg3 {[%clk 0:00:21]} 59. a6 {[%clk 0:00:06]}  e2 {[%clk 0:00:17]} 60. Qxe2 {[%clk 0:00:05]}  Qc7 {[%clk 0:00:15]} 61. Qe8+ {[%clk 0:00:04]}  Kh7 {[%clk 0:00:15]} 62. Qe4+ {[%clk 0:00:05]}  Kh8 {[%clk 0:00:16]} 63. Qb7 {[%clk 0:00:05]}  Qa5 {[%clk 0:00:09]} 64. a7 {[%clk 0:00:04]}  Qxa7 {[%clk 0:00:09]} 65. Qxa7 {[%clk 0:00:04]}  Kh7 {[%clk 0:00:10]} 66. Qc5 {[%clk 0:00:04]}  Kg6 {[%clk 0:00:11]} 67. h4 {[%clk 0:00:05]}  Kh7 {[%clk 0:00:12]} 68. Qf5+ {[%clk 0:00:04]}  g6 {[%clk 0:00:12]} 69. Qf7+ {[%clk 0:00:04]}  Kh8 {[%clk 0:00:13]} 70. Qxg6 {[%clk 0:00:05]}  h5 {[%clk 0:00:13]} 71. Qg5 {[%clk 0:00:05]}  Kh7 {[%clk 0:00:13]} 72. Ne2 {[%clk 0:00:06]}  Kh8 {[%clk 0:00:14]} 73. Ng3 {[%clk 0:00:07]}  Kh7 {[%clk 0:00:15]} 74. Nxh5 {[%clk 0:00:07]}  Kh8 {[%clk 0:00:16]} 75. Qg7# {[%clk 0:00:07]} 1-0


[Site "https://www.chess.com"]

[Event "Titled Tuesday Blitz July 26 Late 2022"]
[White "Vlassov, Nikolai"]
[Black "Aaron, Deepak"]
[WhiteFideId "4103360"]
[BlackFideId "2009412"]
[WhiteElo "2324"]
[BlackElo "2637"]
[Result "1-0"]
[Round "09"]
[TimeControl "180+1"]
[Date "2022.07.26"]
[WhiteClock "0:00:20"]
[BlackClock "0:00:01"]

1. e4 {[%clk 0:03:00]}  e6 {[%clk 0:02:57]} 2. c4 {[%clk 0:02:59]}  d5 {[%clk 0:02:57]} 3. cxd5 {[%clk 0:03:00]}  exd5 {[%clk 0:02:57]} 4. Qb3 {[%clk 0:03:00]}  Nf6 {[%clk 0:02:53]} 5. e5 {[%clk 0:02:59]}  Ne4 {[%clk 0:02:47]} 6. Nc3 {[%clk 0:03:00]}  Nxc3 {[%clk 0:02:33]} 7. bxc3 {[%clk 0:03:01]}  Be7 {[%clk 0:02:29]} 8. d4 {[%clk 0:03:01]}  O-O {[%clk 0:02:29]} 9. Bd3 {[%clk 0:03:01]}  c5 {[%clk 0:02:26]} 10. Qc2 {[%clk 0:03:01]}  cxd4 {[%clk 0:02:17]} 11. Bxh7+ {[%clk 0:02:56]}  Kh8 {[%clk 0:02:17]} 12. Bd3 {[%clk 0:02:52]}  dxc3 {[%clk 0:02:08]} 13. Nf3 {[%clk 0:02:52]}  Nc6 {[%clk 0:02:08]} 14. O-O {[%clk 0:02:50]}  d4 {[%clk 0:01:50]} 15. Qe2 {[%clk 0:02:50]}  g6 {[%clk 0:01:43]} 16. Bh6 {[%clk 0:02:40]}  Re8 {[%clk 0:01:39]} 17. Bc4 {[%clk 0:02:25]}  Bf8 {[%clk 0:01:39]} 18. Bg5 {[%clk 0:02:17]}  Qc7 {[%clk 0:01:31]} 19. Qe4 {[%clk 0:02:01]}  Nxe5 {[%clk 0:00:58]} 20. Nxe5 {[%clk 0:01:55]}  Qxe5 {[%clk 0:00:45]} 21. Qh4+ {[%clk 0:01:19]}  Kg8 {[%clk 0:00:30]} 22. Bf6 {[%clk 0:01:19]}  Qh5 {[%clk 0:00:30]} 23. Qxd4 {[%clk 0:01:19]}  Be6 {[%clk 0:00:25]} 24. Bxe6 {[%clk 0:01:10]}  Rxe6 {[%clk 0:00:26]} 25. Qxc3 {[%clk 0:01:07]}  Rc6 {[%clk 0:00:25]} 26. Qb2 {[%clk 0:01:00]}  Qf5 {[%clk 0:00:22]} 27. Bd4 {[%clk 0:00:57]}  b6 {[%clk 0:00:19]} 28. Rac1 {[%clk 0:00:51]}  Rac8 {[%clk 0:00:19]} 29. Rxc6 {[%clk 0:00:51]}  Rxc6 {[%clk 0:00:20]} 30. h3 {[%clk 0:00:44]}  Rc2 {[%clk 0:00:20]} 31. Qb3 {[%clk 0:00:44]}  Rd2 {[%clk 0:00:18]} 32. Ba1 {[%clk 0:00:32]}  Bc5 {[%clk 0:00:13]} 33. Qc3 {[%clk 0:00:32]}  Rd4 {[%clk 0:00:07]} 34. Qe3 {[%clk 0:00:26]}  Re4 {[%clk 0:00:05]} 35. Qh6 {[%clk 0:00:25]}  Bd4 {[%clk 0:00:03]} 36. Bxd4 {[%clk 0:00:24]}  Rxd4 {[%clk 0:00:04]} 37. Re1 {[%clk 0:00:25]}  Rd8 {[%clk 0:00:03]} 38. a4 {[%clk 0:00:22]}  a6 {[%clk 0:00:03]} 39. Qe3 {[%clk 0:00:21]}  b5 {[%clk 0:00:03]} 40. Qb6 {[%clk 0:00:21]}  Rd5 {[%clk 0:00:01]} 41. Qxa6 {[%clk 0:00:20]} 1-0


[Site "https://www.chess.com"]

[Event "Titled Tuesday Blitz July 26 Late 2022"]
[White "Vovk, Orest"]
[Black "Baltaci, Ismail Tarik"]
[WhiteFideId "14113490"]
[BlackFideId "6365213"]
[WhiteElo "2203"]
[BlackElo "2286"]
[Result "1-0"]
[Round "09"]
[TimeControl "180+1"]
[Date "2022.07.27"]
[WhiteClock "0:00:06"]
[BlackClock "0:00:15"]

1. h3 {[%clk 0:02:48]}  d5 {[%clk 0:02:58]} 2. e4 {[%clk 0:02:48]}  dxe4 {[%clk 0:02:58]} 3. Nc3 {[%clk 0:02:44]}  Nf6 {[%clk 0:02:57]} 4. Qe2 {[%clk 0:02:37]}  e5 {[%clk 0:02:56]} 5. Nxe4 {[%clk 0:02:37]}  Be7 {[%clk 0:02:56]} 6. Nxf6+ {[%clk 0:02:36]}  Bxf6 {[%clk 0:02:55]} 7. Qe4 {[%clk 0:02:37]}  Nc6 {[%clk 0:02:50]} 8. Bc4 {[%clk 0:02:36]}  O-O {[%clk 0:02:49]} 9. Nf3 {[%clk 0:02:36]}  Nd4 {[%clk 0:02:45]} 10. Nxd4 {[%clk 0:02:35]}  exd4 {[%clk 0:02:45]} 11. O-O {[%clk 0:02:33]}  Re8 {[%clk 0:02:43]} 12. Qf3 {[%clk 0:02:32]}  c6 {[%clk 0:02:27]} 13. d3 {[%clk 0:02:31]}  Be6 {[%clk 0:02:26]} 14. Bxe6 {[%clk 0:02:28]}  Rxe6 {[%clk 0:02:27]} 15. Bf4 {[%clk 0:02:28]}  Qe7 {[%clk 0:02:27]} 16. Bd2 {[%clk 0:02:20]}  Re8 {[%clk 0:02:25]} 17. Rae1 {[%clk 0:02:11]}  Qd7 {[%clk 0:02:19]} 18. Rxe6 {[%clk 0:02:06]}  Rxe6 {[%clk 0:02:20]} 19. Qg4 {[%clk 0:01:57]}  Qe8 {[%clk 0:02:16]} 20. Qd1 {[%clk 0:01:51]}  Re2 {[%clk 0:02:08]} 21. Re1 {[%clk 0:01:48]}  Rxe1+ {[%clk 0:02:06]} 22. Qxe1 {[%clk 0:01:49]}  Qxe1+ {[%clk 0:02:03]} 23. Bxe1 {[%clk 0:01:50]}  Kf8 {[%clk 0:02:03]} 24. Kf1 {[%clk 0:01:46]}  Ke7 {[%clk 0:02:03]} 25. Ke2 {[%clk 0:01:47]}  Ke6 {[%clk 0:02:04]} 26. g4 {[%clk 0:01:43]}  g6 {[%clk 0:01:59]} 27. Kf3 {[%clk 0:01:33]}  Be5 {[%clk 0:01:56]} 28. Ke4 {[%clk 0:01:30]}  f5+ {[%clk 0:01:51]} 29. gxf5+ {[%clk 0:01:31]}  gxf5+ {[%clk 0:01:52]} 30. Kf3 {[%clk 0:01:31]}  Kd5 {[%clk 0:01:43]} 31. Bb4 {[%clk 0:01:23]}  b5 {[%clk 0:01:24]} 32. Bf8 {[%clk 0:01:16]}  c5 {[%clk 0:01:16]} 33. b3 {[%clk 0:01:10]}  c4 {[%clk 0:01:15]} 34. bxc4+ {[%clk 0:01:07]}  bxc4 {[%clk 0:01:16]} 35. Bb4 {[%clk 0:01:01]}  a6 {[%clk 0:01:04]} 36. Bd2 {[%clk 0:00:54]}  c3 {[%clk 0:01:00]} 37. Bf4 {[%clk 0:00:52]}  Bf6 {[%clk 0:00:58]} 38. Bb8 {[%clk 0:00:44]}  Bg5 {[%clk 0:00:58]} 39. Ba7 {[%clk 0:00:44]}  Bd2 {[%clk 0:00:57]} 40. Kg3 {[%clk 0:00:41]}  Bg5 {[%clk 0:00:56]} 41. f3 {[%clk 0:00:37]}  Be3 {[%clk 0:00:48]} 42. Kh4 {[%clk 0:00:34]}  Ke5 {[%clk 0:00:47]} 43. Bb8+ {[%clk 0:00:33]}  Kf6 {[%clk 0:00:46]} 44. Kh5 {[%clk 0:00:19]}  Bd2 {[%clk 0:00:45]} 45. Bc7 {[%clk 0:00:14]}  Be3 {[%clk 0:00:45]} 46. f4 {[%clk 0:00:13]}  Bd2 {[%clk 0:00:16]} 47. Be5+ {[%clk 0:00:12]}  Ke6 {[%clk 0:00:14]} 48. Kh6 {[%clk 0:00:10]}  Kd5 {[%clk 0:00:11]} 49. Kxh7 {[%clk 0:00:10]}  Be1 {[%clk 0:00:12]} 50. Kg6 {[%clk 0:00:09]}  Bf2 {[%clk 0:00:11]} 51. Kxf5 {[%clk 0:00:09]}  a5 {[%clk 0:00:11]} 52. Kg4 {[%clk 0:00:07]}  a4 {[%clk 0:00:12]} 53. Kf3 {[%clk 0:00:07]}  Be3 {[%clk 0:00:12]} 54. h4 {[%clk 0:00:07]}  Kc5 {[%clk 0:00:12]} 55. h5 {[%clk 0:00:07]}  Kb4 {[%clk 0:00:12]} 56. Bd6+ {[%clk 0:00:06]}  Kb5 {[%clk 0:00:13]} 57. h6 {[%clk 0:00:07]}  Kc6 {[%clk 0:00:14]} 58. Be5 {[%clk 0:00:06]}  Kd5 {[%clk 0:00:14]} 59. h7 {[%clk 0:00:06]}  Bxf4 {[%clk 0:00:15]} 1-0


[Site "https://www.chess.com"]

[Event "Titled Tuesday Blitz July 26 Late 2022"]
[White "Weetik, Vjacheslav"]
[Black "Barria Zuniga, Daniel"]
[WhiteFideId "4153472"]
[BlackFideId "3400816"]
[WhiteElo "2469"]
[BlackElo "2414"]
[Result "0-1"]
[Round "09"]
[TimeControl "180+1"]
[Date "2022.07.26"]
[WhiteClock "0:00:02"]
[BlackClock "0:00:03"]

1. d4 {[%clk 0:02:59]}  Nf6 {[%clk 0:02:57]} 2. c4 {[%clk 0:02:59]}  e6 {[%clk 0:02:57]} 3. g3 {[%clk 0:02:58]}  d5 {[%clk 0:02:54]} 4. Nf3 {[%clk 0:02:58]}  Be7 {[%clk 0:02:55]} 5. Bg2 {[%clk 0:02:58]}  O-O {[%clk 0:02:56]} 6. O-O {[%clk 0:02:59]}  dxc4 {[%clk 0:02:55]} 7. Qc2 {[%clk 0:02:59]}  a6 {[%clk 0:02:54]} 8. a4 {[%clk 0:02:58]}  c5 {[%clk 0:02:53]} 9. dxc5 {[%clk 0:02:26]}  Bxc5 {[%clk 0:02:54]} 10. Nbd2 {[%clk 0:02:26]}  Nc6 {[%clk 0:02:48]} 11. Nxc4 {[%clk 0:02:23]}  Qe7 {[%clk 0:02:44]} 12. Bf4 {[%clk 0:02:02]}  Nd5 {[%clk 0:02:40]} 13. Bg5 {[%clk 0:02:01]}  f6 {[%clk 0:02:40]} 14. Bd2 {[%clk 0:01:59]}  Rd8 {[%clk 0:02:37]} 15. a5 {[%clk 0:01:54]}  e5 {[%clk 0:02:35]} 16. Rfc1 {[%clk 0:01:27]}  Ba7 {[%clk 0:02:13]} 17. e3 {[%clk 0:01:06]}  Be6 {[%clk 0:02:12]} 18. Nh4 {[%clk 0:00:57]}  Rd7 {[%clk 0:02:04]} 19. Nf5 {[%clk 0:00:55]}  Qf8 {[%clk 0:02:03]} 20. Qe4 {[%clk 0:00:43]}  Rad8 {[%clk 0:02:00]} 21. Be1 {[%clk 0:00:43]}  g6 {[%clk 0:01:55]} 22. Nh4 {[%clk 0:00:37]}  f5 {[%clk 0:01:55]} 23. Qc2 {[%clk 0:00:33]}  Ndb4 {[%clk 0:01:49]} 24. Qa4 {[%clk 0:00:32]}  Nd3 {[%clk 0:01:38]} 25. Rc3 {[%clk 0:00:32]}  e4 {[%clk 0:01:35]} 26. Bf1 {[%clk 0:00:25]}  g5 {[%clk 0:01:10]} 27. Ng2 {[%clk 0:00:22]}  Nde5 {[%clk 0:01:06]} 28. Nb6 {[%clk 0:00:10]}  Bxb6 {[%clk 0:01:03]} 29. axb6 {[%clk 0:00:11]}  Nf3+ {[%clk 0:01:03]} 30. Kh1 {[%clk 0:00:11]}  Qh6 {[%clk 0:01:04]} 31. h4 {[%clk 0:00:07]}  gxh4 {[%clk 0:01:04]} 32. g4 {[%clk 0:00:07]}  Rg7 {[%clk 0:00:13]} 33. Nf4 {[%clk 0:00:08]}  Rxg4 {[%clk 0:00:13]} 34. Bg2 {[%clk 0:00:05]}  Rxf4 {[%clk 0:00:13]} 35. exf4 {[%clk 0:00:04]}  Ncd4 {[%clk 0:00:08]} 36. Rc7 {[%clk 0:00:01]}  Qxf4 {[%clk 0:00:06]} 37. Bxf3 {[%clk 0:00:01]}  Nxf3 {[%clk 0:00:06]} 38. Kg2 {[%clk 0:00:02]}  Qh2+ {[%clk 0:00:05]} 39. Kf1 {[%clk 0:00:02]}  Qg1+ {[%clk 0:00:03]} 40. Ke2 {[%clk 0:00:03]}  Qg4 {[%clk 0:00:04]} 41. Kf1 {[%clk 0:00:02]}  Nh2# {[%clk 0:00:03]} 0-1


[Site "https://www.chess.com"]

[Event "Titled Tuesday Blitz July 26 Late 2022"]
[White "Zhigalko, Sergei"]
[Black "Domingo Nunez, Ruben"]
[WhiteFideId "13502956"]
[BlackFideId "22245570"]
[WhiteElo "2662"]
[BlackElo "2373"]
[Result "1-0"]
[Round "09"]
[TimeControl "180+1"]
[Date "2022.07.26"]
[WhiteClock "0:01:33"]
[BlackClock "0:00:49"]

1. e4 {[%clk 0:03:00]}  Nc6 {[%clk 0:02:55]} 2. Nf3 {[%clk 0:03:00]}  d5 {[%clk 0:02:56]} 3. exd5 {[%clk 0:03:00]}  Qxd5 {[%clk 0:02:57]} 4. Nc3 {[%clk 0:03:01]}  Qa5 {[%clk 0:02:58]} 5. d4 {[%clk 0:03:00]}  Bg4 {[%clk 0:02:58]} 6. Bb5 {[%clk 0:03:00]}  Nf6 {[%clk 0:02:57]} 7. h3 {[%clk 0:02:57]}  Bd7 {[%clk 0:02:46]} 8. O-O {[%clk 0:02:53]}  O-O-O {[%clk 0:02:46]} 9. Bd2 {[%clk 0:02:53]}  a6 {[%clk 0:02:45]} 10. a4 {[%clk 0:02:53]}  Qb6 {[%clk 0:02:35]} 11. Be3 {[%clk 0:02:50]}  Nb4 {[%clk 0:02:07]} 12. Ne5 {[%clk 0:02:15]}  Be6 {[%clk 0:01:48]} 13. d5 {[%clk 0:01:51]}  Qa5 {[%clk 0:01:47]} 14. Nc4 {[%clk 0:01:50]}  Nbxd5 {[%clk 0:01:09]} 15. Nxa5 {[%clk 0:01:45]}  Nxe3 {[%clk 0:01:03]} 16. Qf3 {[%clk 0:01:41]}  Ned5 {[%clk 0:00:54]} 17. Bc4 {[%clk 0:01:37]}  g6 {[%clk 0:00:52]} 18. Rad1 {[%clk 0:01:33]}  Bg7 {[%clk 0:00:49]} 19. Nxd5 {[%clk 0:01:32]}  Nxd5 {[%clk 0:00:49]} 20. Bxd5 {[%clk 0:01:33]} 1-0


[Site "https://www.chess.com"]

[Event "Titled Tuesday Blitz July 26 Late 2022"]
[White "Aaron, Deepak"]
[Black "Vagman, Roy"]
[WhiteFideId "2009412"]
[BlackFideId "2828995"]
[WhiteElo "2629"]
[BlackElo "1956"]
[Result "1-0"]
[Round "10"]
[TimeControl "180+1"]
[Date "2022.07.26"]
[WhiteClock "0:00:16"]
[BlackClock "0:00:19"]

1. e4 {[%clk 0:03:00]}  c5 {[%clk 0:03:00]} 2. Nf3 {[%clk 0:03:00]}  Nc6 {[%clk 0:03:00]} 3. Bb5 {[%clk 0:03:00]}  g6 {[%clk 0:02:59]} 4. Bxc6 {[%clk 0:03:00]}  dxc6 {[%clk 0:02:57]} 5. O-O {[%clk 0:03:01]}  Bg7 {[%clk 0:02:57]} 6. h3 {[%clk 0:03:01]}  e5 {[%clk 0:02:57]} 7. a3 {[%clk 0:03:00]}  Qe7 {[%clk 0:02:46]} 8. b4 {[%clk 0:02:58]}  Nf6 {[%clk 0:02:41]} 9. Bb2 {[%clk 0:02:57]}  Nd7 {[%clk 0:02:36]} 10. bxc5 {[%clk 0:02:55]}  Nxc5 {[%clk 0:02:35]} 11. d3 {[%clk 0:02:39]}  O-O {[%clk 0:02:34]} 12. Nbd2 {[%clk 0:02:40]}  Na4 {[%clk 0:02:27]} 13. Bc1 {[%clk 0:02:34]}  f5 {[%clk 0:02:22]} 14. exf5 {[%clk 0:02:24]}  Bxf5 {[%clk 0:02:22]} 15. Ne4 {[%clk 0:02:13]}  h6 {[%clk 0:02:12]} 16. Re1 {[%clk 0:02:05]}  Rad8 {[%clk 0:02:09]} 17. Bd2 {[%clk 0:01:21]}  g5 {[%clk 0:02:03]} 18. c3 {[%clk 0:01:14]}  b5 {[%clk 0:01:57]} 19. d4 {[%clk 0:01:05]}  g4 {[%clk 0:01:52]} 20. Nxe5 {[%clk 0:01:00]}  gxh3 {[%clk 0:01:23]} 21. Ng3 {[%clk 0:00:52]}  Qh4 {[%clk 0:01:09]} 22. Nxf5 {[%clk 0:00:38]}  Rxf5 {[%clk 0:01:08]} 23. g3 {[%clk 0:00:32]}  h2+ {[%clk 0:01:04]} 24. Kg2 {[%clk 0:00:30]}  Qf6 {[%clk 0:00:53]} 25. f4 {[%clk 0:00:25]}  Qd6 {[%clk 0:00:47]} 26. Kxh2 {[%clk 0:00:23]}  Bxe5 {[%clk 0:00:43]} 27. Qg4+ {[%clk 0:00:20]}  Bg7 {[%clk 0:00:36]} 28. Qxf5 {[%clk 0:00:20]}  Kh8 {[%clk 0:00:31]} 29. Re6 {[%clk 0:00:20]}  Qd7 {[%clk 0:00:27]} 30. Rae1 {[%clk 0:00:19]}  Rf8 {[%clk 0:00:24]} 31. Rxh6+ {[%clk 0:00:17]}  Bxh6 {[%clk 0:00:20]} 32. Qxd7 {[%clk 0:00:18]}  Bg7 {[%clk 0:00:20]} 33. Re7 {[%clk 0:00:17]}  Nb6 {[%clk 0:00:18]} 34. Qh3+ {[%clk 0:00:15]}  Kg8 {[%clk 0:00:18]} 35. Qe6+ {[%clk 0:00:15]}  Kh8 {[%clk 0:00:18]} 36. Qg6 {[%clk 0:00:15]}  Rg8 {[%clk 0:00:18]} 37. Qh5+ {[%clk 0:00:15]}  Bh6 {[%clk 0:00:19]} 38. Qxh6# {[%clk 0:00:16]} 1-0


[Site "https://www.chess.com"]

[Event "Titled Tuesday Blitz July 26 Late 2022"]
[White "Agasarov, Benik"]
[Black "Vivekananthan, Anish"]
[WhiteFideId "13314823"]
[BlackFideId "2090775"]
[WhiteElo "2620"]
[BlackElo "2772"]
[Result "0-1"]
[Round "10"]
[TimeControl "180+1"]
[Date "2022.07.26"]
[WhiteClock "0:00:02"]
[BlackClock "0:00:23"]

1. e4 {[%clk 0:02:54]}  c6 {[%clk 0:02:52]} 2. Nc3 {[%clk 0:02:46]}  d5 {[%clk 0:02:53]} 3. Qe2 {[%clk 0:02:46]}  Nf6 {[%clk 0:02:49]} 4. e5 {[%clk 0:02:44]}  d4 {[%clk 0:02:44]} 5. exf6 {[%clk 0:02:41]}  dxc3 {[%clk 0:02:44]} 6. fxe7 {[%clk 0:02:40]}  cxd2+ {[%clk 0:02:41]} 7. Bxd2 {[%clk 0:02:38]}  Bxe7 {[%clk 0:02:38]} 8. O-O-O {[%clk 0:02:37]}  Qc7 {[%clk 0:02:13]} 9. g3 {[%clk 0:01:52]}  Be6 {[%clk 0:02:11]} 10. Bg2 {[%clk 0:01:51]}  O-O {[%clk 0:01:58]} 11. Kb1 {[%clk 0:01:50]}  Bf6 {[%clk 0:01:46]} 12. Qe3 {[%clk 0:01:29]}  Re8 {[%clk 0:01:41]} 13. Qa3 {[%clk 0:01:11]}  Nd7 {[%clk 0:01:31]} 14. Bc3 {[%clk 0:01:08]}  Be7 {[%clk 0:01:29]} 15. Qa4 {[%clk 0:01:01]}  Nc5 {[%clk 0:01:24]} 16. Qd4 {[%clk 0:01:00]}  Bf8 {[%clk 0:01:23]} 17. Qh4 {[%clk 0:00:54]}  a5 {[%clk 0:01:12]} 18. Nf3 {[%clk 0:00:54]}  Bf5 {[%clk 0:01:05]} 19. Qg5 {[%clk 0:00:38]}  Bg6 {[%clk 0:00:49]} 20. Nh4 {[%clk 0:00:37]}  Ne4 {[%clk 0:00:40]} 21. Bxe4 {[%clk 0:00:30]}  Bxe4 {[%clk 0:00:41]} 22. Rhe1 {[%clk 0:00:30]}  b5 {[%clk 0:00:32]} 23. Rxe4 {[%clk 0:00:27]}  Rxe4 {[%clk 0:00:33]} 24. Nf5 {[%clk 0:00:27]}  Re6 {[%clk 0:00:34]} 25. h4 {[%clk 0:00:05]}  Rg6 {[%clk 0:00:32]} 26. Qe3 {[%clk 0:00:05]}  Rd8 {[%clk 0:00:30]} 27. Re1 {[%clk 0:00:05]}  Re6 {[%clk 0:00:29]} 28. Be5 {[%clk 0:00:02]}  Rxe5 {[%clk 0:00:23]} 0-1


[Site "https://www.chess.com"]

[Event "Titled Tuesday Blitz July 26 Late 2022"]
[White "Alexiadis, Hristos"]
[Black "Souleidis, Georgios"]
[WhiteFideId "4249623"]
[BlackFideId "4206827"]
[WhiteElo "2416"]
[BlackElo "2401"]
[Result "1-0"]
[Round "10"]
[TimeControl "180+1"]
[Date "2022.07.26"]
[WhiteClock "0:00:05"]
[BlackClock "0:00:08"]

1. d4 {[%clk 0:03:00]}  Nf6 {[%clk 0:02:59]} 2. c4 {[%clk 0:03:01]}  g6 {[%clk 0:03:00]} 3. Nc3 {[%clk 0:03:00]}  Bg7 {[%clk 0:03:00]} 4. e3 {[%clk 0:03:01]}  d6 {[%clk 0:03:01]} 5. Nge2 {[%clk 0:02:55]}  O-O {[%clk 0:03:02]} 6. g3 {[%clk 0:02:55]}  e5 {[%clk 0:03:02]} 7. Bg2 {[%clk 0:02:55]}  Re8 {[%clk 0:03:00]} 8. O-O {[%clk 0:02:56]}  c6 {[%clk 0:02:56]} 9. Rb1 {[%clk 0:02:54]}  a5 {[%clk 0:02:54]} 10. a3 {[%clk 0:02:54]}  Qc7 {[%clk 0:02:54]} 11. b4 {[%clk 0:02:55]}  axb4 {[%clk 0:02:55]} 12. axb4 {[%clk 0:02:55]}  Bf5 {[%clk 0:02:52]} 13. e4 {[%clk 0:02:55]}  Bg4 {[%clk 0:02:51]} 14. Be3 {[%clk 0:02:52]}  Qc8 {[%clk 0:02:46]} 15. d5 {[%clk 0:02:45]}  cxd5 {[%clk 0:02:42]} 16. cxd5 {[%clk 0:02:45]}  Bh3 {[%clk 0:02:25]} 17. Qd3 {[%clk 0:02:37]}  Bxg2 {[%clk 0:02:22]} 18. Kxg2 {[%clk 0:02:38]}  Nbd7 {[%clk 0:02:14]} 19. Nb5 {[%clk 0:02:37]}  Qb8 {[%clk 0:02:06]} 20. Rfc1 {[%clk 0:02:33]}  Rd8 {[%clk 0:02:04]} 21. f3 {[%clk 0:02:27]}  Bf8 {[%clk 0:02:02]} 22. Rc2 {[%clk 0:02:20]}  Rc8 {[%clk 0:02:01]} 23. Rbc1 {[%clk 0:02:19]}  Rxc2 {[%clk 0:02:00]} 24. Qxc2 {[%clk 0:02:17]}  Ne8 {[%clk 0:01:58]} 25. g4 {[%clk 0:02:07]}  Be7 {[%clk 0:01:54]} 26. Ng3 {[%clk 0:01:53]}  Qd8 {[%clk 0:01:52]} 27. Qd2 {[%clk 0:01:43]}  Rc8 {[%clk 0:01:47]} 28. Rxc8 {[%clk 0:01:43]}  Qxc8 {[%clk 0:01:48]} 29. Qc1 {[%clk 0:01:42]}  Qxc1 {[%clk 0:01:39]} 30. Bxc1 {[%clk 0:01:43]}  Bd8 {[%clk 0:01:37]} 31. Nf1 {[%clk 0:01:42]}  Bb6 {[%clk 0:01:36]} 32. Be3 {[%clk 0:01:40]}  Kf8 {[%clk 0:01:33]} 33. Kf2 {[%clk 0:01:39]}  Ke7 {[%clk 0:01:33]} 34. Nd2 {[%clk 0:01:38]}  Bxe3+ {[%clk 0:01:31]} 35. Kxe3 {[%clk 0:01:39]}  Nb6 {[%clk 0:01:32]} 36. Kd3 {[%clk 0:01:37]}  Kd7 {[%clk 0:01:31]} 37. Nb3 {[%clk 0:01:34]}  Nc7 {[%clk 0:01:28]} 38. Nc3 {[%clk 0:01:31]}  Na6 {[%clk 0:01:26]} 39. Na2 {[%clk 0:01:29]}  Kc7 {[%clk 0:01:20]} 40. Na5 {[%clk 0:01:26]}  Nc8 {[%clk 0:01:12]} 41. h4 {[%clk 0:01:24]}  f6 {[%clk 0:01:09]} 42. Kc4 {[%clk 0:01:23]}  Ne7 {[%clk 0:01:06]} 43. Nc3 {[%clk 0:01:22]}  b6 {[%clk 0:01:00]} 44. Nc6 {[%clk 0:01:14]}  Nc8 {[%clk 0:00:41]} 45. Nb5+ {[%clk 0:01:11]}  Kd7 {[%clk 0:00:41]} 46. Kb3 {[%clk 0:00:44]}  Ne7 {[%clk 0:00:40]} 47. Nc3 {[%clk 0:00:32]}  Nc7 {[%clk 0:00:37]} 48. Na7 {[%clk 0:00:18]}  Nc8 {[%clk 0:00:24]} 49. Nxc8 {[%clk 0:00:17]}  Kxc8 {[%clk 0:00:25]} 50. Kc4 {[%clk 0:00:18]}  Kd7 {[%clk 0:00:22]} 51. Nb5 {[%clk 0:00:15]}  Ne8 {[%clk 0:00:19]} 52. Na7 {[%clk 0:00:11]}  Kc7 {[%clk 0:00:20]} 53. Nc6 {[%clk 0:00:08]}  Kb7 {[%clk 0:00:20]} 54. Nd8+ {[%clk 0:00:06]}  Kc7 {[%clk 0:00:20]} 55. Ne6+ {[%clk 0:00:07]}  Kb7 {[%clk 0:00:20]} 56. Nf8 {[%clk 0:00:07]}  h6 {[%clk 0:00:13]} 57. Nxg6 {[%clk 0:00:07]}  Nc7 {[%clk 0:00:10]} 58. b5 {[%clk 0:00:06]}  Ne8 {[%clk 0:00:10]} 59. Ne7 {[%clk 0:00:06]}  Kc7 {[%clk 0:00:11]} 60. h5 {[%clk 0:00:05]}  Kd7 {[%clk 0:00:08]} 61. Nf5 {[%clk 0:00:05]} 1-0


[Site "https://www.chess.com"]